bitfinex/quotes_SOLUSD_20250901
["timestamp","ask_amount","ask_price","bid_price","bid_amount"]
[1756701706366,8.81268563,197.45,197.44,153.62559401]
[1756701709671,5.0645733,197.45,197.44,153.62559401]
[1756701709851,5.06426918,197.47,197.44,153.76775558]
[1756701710055,5.06426918,197.47,197.46,13.59559401]
[1756701710255,8.81238151,197.47,197.46,13.59559401]
[1756701714458,8.81238151,197.47,197.44,0.03]
[1756701714672,5.06426918,197.47,197.45,13.59559401]
[1756701714870,3.74811233,197.46,197.45,13.59559401]
[1756701715071,3.06246926,197.46,197.44,13.62559401]
[1756701715274,3.74811233,197.45,197.44,13.62559401]
[1756701715475,3.74811233,197.45,197.44,0.03]
[1756701715681,3.74811233,197.45,197.44,13.62559401]
[1756701716183,8.81268563,197.45,197.44,153.62559401]
[1756701718368,5.0645733,197.45,197.44,153.62559401]
[1756701718571,8.81268563,197.45,197.44,153.62559401]
[1756701720078,8.81268563,197.45,197.44,13.62559401]
[1756701723178,8.81268563,197.45,197.44,153.62559401]
[1756701723493,8.87268563,197.45,197.44,153.62559401]
[1756701724688,24.09454363,197.45,197.44,153.62559401]
[1756701726094,24.09454363,197.45,197.44,13.62559401]
[1756701727279,24.09454363,197.45,197.44,0.03]
[1756701727280,20.3464313,197.45,197.44,0.03]
[1756701727595,8.87268563,197.45,197.44,0.03]
[1756701727792,0.06,197.45,197.44,13.76775558]
[1756701727997,5.1245733,197.45,197.44,13.76775558]
[1756701728385,5.1245733,197.45,197.44,13.62559401]
[1756701728386,8.87268563,197.45,197.44,13.62559401]
[1756701728900,5.1245733,197.45,197.44,13.62559401]
[1756701729210,8.87268563,197.45,197.44,153.62559401]
[1756701730380,0.06,197.45,197.44,153.76775558]
[1756701730581,0.06,197.45,197.44,157.51586791]
[1756701731183,0.06,197.45,197.44,153.76775558]
[1756701732991,0.06,197.45,197.44,193.94559401]
[1756701732992,3.80811233,197.45,197.44,193.94559401]
[1756701733185,7.55622433,197.45,197.44,153.62559401]
[1756701733689,12.62079763,197.45,197.44,153.62559401]
[1756701737102,8.8726853,197.45,197.44,153.62559401]
[1756701737312,8.87268563,197.45,197.44,153.62559401]
[1756701737687,8.87268563,197.45,197.44,13.62559401]
[1756701740602,8.87268563,197.45,197.44,153.62559401]
[1756701744713,8.87268563,197.45,197.44,193.90559401]
[1756701746618,0.06,197.45,197.44,194.04775558]
[1756701747003,5.1245733,197.45,197.44,194.04775558]
[1756701747204,8.87268563,197.45,197.44,193.90559401]
[1756701748119,8.87268563,197.45,197.44,153.62559401]
[1756701748423,17.74537163,197.45,197.44,193.88559401]
[1756701749925,17.74537163,197.45,197.44,153.62559401]
[1756701750425,17.74537163,197.45,197.44,193.88559401]
[1756701751619,17.74537163,197.45,197.44,153.62559401]
[1756701751828,13.9972593,197.45,197.44,193.88559401]
[1756701752029,17.74537163,197.45,197.44,193.88559401]
[1756701752715,13.9972593,197.45,197.44,193.88559401]
[1756701753030,16.91044514,197.45,197.44,193.88559401]
[1756701755912,0.06,197.45,197.44,193.88559401]
[1756701756105,0.06,197.45,197.44,194.02775558]
[1756701756426,0.06,197.45,197.44,196.94094142]
[1756701756608,0.06,197.45,197.44,202.00577124]
[1756701757012,0.06,197.45,197.44,194.02775558]
[1756701757215,0.06,197.45,197.44,196.94094142]
[1756701758937,0.06,197.45,197.44,194.02775558]
[1756701759730,0.06,197.45,197.44,196.94094142]
[1756701762726,0.06,197.45,197.44,194.02775558]
[1756701762955,0.06,197.45,197.44,193.98775558]
[1756701764526,2.97318584,197.45,197.44,153.62559401]
[1756701764837,2.97318584,197.45,197.44,193.82559401]
[1756701766708,0.06,197.45,197.44,193.96775558]
[1756701767727,0.06,197.45,197.44,64.85895708]
[1756701767936,0.06,197.46,197.45,0.14216157]
[1756701768110,0.06,197.46,197.45,16.65094142]
[1756701768930,0.06,197.46,197.45,61.91551472]
[1756701769135,0.06,197.46,197.45,53.93775558]
[1756701769435,0.06,197.46,197.45,56.85094142]
[1756701769620,0.06,197.46,197.45,53.93775558]
[1756701769828,0.06,197.46,197.45,56.85094142]
[1756701770719,0.06,197.46,197.45,193.91775558]
[1756701771226,0.06,197.46,197.45,193.77559401]
[1756701771618,2.97318584,197.46,197.45,193.77559401]
[1756701773148,8.03750266,197.46,197.45,193.77559401]
[1756701774222,8.03750266,197.46,197.45,53.77559401]
[1756701777131,8.03750266,197.46,197.45,193.77559401]
[1756701780428,5.12431682,197.46,197.45,193.77559401]
[1756701780633,8.03750266,197.46,197.45,193.77559401]
[1756701782543,2.97318584,197.46,197.45,193.77559401]
[1756701783829,8.03750266,197.46,197.45,193.77559401]
[1756701787960,0.06,197.46,197.45,193.91775558]
[1756701788146,0.06,197.46,197.45,196.83094142]
[1756701789052,0.06,197.46,197.45,193.91775558]
[1756701793357,2.97318584,197.46,197.45,153.59559401]
[1756701795048,2.97318584,197.46,197.45,153.62559401]
[1756701795637,8.03750266,197.46,197.45,193.72559401]
[1756701796933,0.06,197.46,197.45,193.72559401]
[1756701797138,2.97318584,197.46,197.45,193.72559401]
[1756701798133,8.03750266,197.46,197.45,193.72559401]
[1756701799545,5.12431682,197.46,197.45,193.72559401]
[1756701799742,2.97318584,197.46,197.45,193.72559401]
[1756701801455,0.06,197.46,197.45,193.72559401]
[1756701801765,2.97318584,197.46,197.45,193.72559401]
[1756701802838,8.03750266,197.46,197.45,193.72559401]
[1756701803052,0.06,197.46,197.45,193.72559401]
[1756701804149,0.06,197.46,197.45,193.86775558]
[1756701804859,0.06,197.46,197.45,193.84775558]
[1756701806659,0.06,197.46,197.45,201.82551472]
[1756701806837,0.06,197.46,197.45,61.82551472]
[1756701808162,0.06,197.47,197.46,13.73775558]
[1756701808356,0.06,197.47,197.46,16.65094142]
[1756701808549,0.06,197.47,197.46,21.71525824]
[1756701808743,0.06,197.47,197.46,61.77525824]
[1756701808948,0.06,197.47,197.46,18.8020724]
[1756701809150,0.06,197.47,197.46,61.77525824]
[1756701809346,0.06,197.47,197.46,21.71525824]
[1756701809754,0.06,197.47,197.46,61.77525824]
[1756701810062,0.06,197.47,197.46,201.77525824]
[1756701810268,0.06,197.48,197.46,201.77525824]
[1756701810461,0.06,197.48,197.47,16.65094142]
[1756701810855,0.06,197.48,197.47,21.71500178]
[1756701811071,0.06,197.48,197.47,16.65094142]
[1756701811269,0.06,197.48,197.47,13.59559401]
[1756701811270,2.97318584,197.48,197.47,13.59559401]
[1756701811454,2.97318584,197.48,197.47,50.21559401]
[1756701811763,2.97318584,197.48,197.45,0.03]
[1756701811959,2.91318584,197.46,197.45,0.03]
[1756701812161,2.91318584,197.46,197.45,13.76775558]
[1756701812364,2.91318584,197.46,197.45,13.62559401]
[1756701812552,2.91318584,197.46,197.45,0.03]
[1756701812755,10.8906885,197.46,197.45,0.03]
[1756701813149,7.97750266,197.46,197.45,0.03]
[1756701813347,10.8906885,197.46,197.45,140.03]
[1756701814539,10.8906885,197.46,197.45,0.03]
[1756701814737,10.8906885,197.46,197.44,0.03]
[1756701814975,5.82637168,197.45,197.44,0.03]
[1756701815567,26.0,197.43,197.41,0.03]
[1756701815762,2.91318584,197.42,197.33,36.0]
[1756701815966,2.91318584,197.41,197.27,88.69245155]
[1756701816156,2.91318584,197.4,197.32,40.04]
[1756701816353,5.82637168,197.4,197.33,13.73775558]
[1756701816661,5.82637168,197.4,197.33,13.59559401]
[1756701816844,7.97904196,197.4,197.33,13.59559401]
[1756701817466,7.97904196,197.4,197.37,140.03]
[1756701818466,26.0,197.37,197.36,1e-08]
[1756701818672,68.95318584,197.37,197.27,85.77926571]
[1756701818866,7.98212339,197.28,197.27,85.77926571]
[1756701819172,7.98212339,197.28,197.27,13.59559401]
[1756701819967,2.91318584,197.28,197.27,13.59559401]
[1756701820547,7.98212339,197.28,197.27,13.59559401]
[1756701820958,2.91318584,197.28,197.27,13.59559401]
[1756701821163,26.0,197.33,197.27,13.59559401]
[1756701821364,2.91318584,197.28,197.27,153.59559401]
[1756701822149,17.73768497,197.32,197.27,153.59559401]
[1756701822346,2.91318584,197.28,197.27,153.59559401]
[1756701822858,7.98212339,197.28,197.27,153.59559401]
[1756701824762,5.06893755,197.28,197.27,153.59559401]
[1756701824963,2.91318584,197.28,197.27,153.59559401]
[1756701825367,5.06867643,197.3,197.27,153.59559401]
[1756701825663,2.91318584,197.28,197.27,153.59559401]
[1756701825867,2.91318584,197.28,197.27,193.77775558]
[1756701826065,12.66797193,197.35,197.27,193.77775558]
[1756701826066,5.06843501,197.3,197.27,193.77775558]
[1756701826273,2.91318584,197.29,197.27,193.77775558]
[1756701827184,2.91318584,197.28,197.27,193.77775558]
[1756701827858,2.91318584,197.28,197.27,153.59559401]
[1756701828064,2.91318584,197.28,197.27,193.77775558]
[1756701828482,7.98212339,197.28,197.27,193.77775558]
[1756701828887,7.98212339,197.28,197.27,193.63559401]
[1756701830684,7.98212339,197.28,197.27,193.66559401]
[1756701831061,2.91318584,197.28,197.27,193.66559401]
[1756701831677,12.67020451,197.32,197.27,193.66559401]
[1756701831886,2.91318584,197.28,197.27,193.80775558]
[1756701832090,2.91318584,197.29,197.27,193.66559401]
[1756701833007,2.91318584,197.28,197.27,193.80775558]
[1756701833357,5.82637168,197.28,197.27,153.62559401]
[1756701833981,5.82637168,197.28,197.27,13.62559401]
[1756701834476,2.91318584,197.28,197.27,13.62559401]
[1756701834882,10.89530923,197.28,197.27,13.62559401]
[1756701835864,2.91318584,197.28,197.27,13.62559401]
[1756701836165,7.98212339,197.28,197.27,53.66559401]
[1756701836365,7.98212339,197.28,197.27,13.62559401]
[1756701837063,7.98212339,197.28,197.27,153.62559401]
[1756701838360,10.89530923,197.28,197.27,153.62559401]
[1756701838968,26.13030823,197.28,197.27,153.62559401]
[1756701839389,20.30393655,197.28,197.27,153.62559401]
[1756701839588,23.21712239,197.28,197.27,153.62559401]
[1756701840869,7.71813887,197.31,197.28,13.59559401]
[1756701841067,2.91318584,197.3,197.28,53.63559401]
[1756701841387,2.91318584,197.29,197.28,53.63559401]
[1756701841769,2.91318584,197.29,197.28,40.04]
[1756701841977,5.06825378,197.31,197.29,13.59559401]
[1756701842182,2.91318584,197.3,197.29,13.59559401]
[1756701842571,7.98160956,197.3,197.29,13.59559401]
[1756701842908,2.91318584,197.3,197.29,13.59559401]
[1756701843207,7.98160956,197.3,197.29,13.59559401]
[1756701843892,2.91318584,197.3,197.29,13.73775558]
[1756701844070,2.91318584,197.31,197.29,13.73775558]
[1756701844402,5.06772703,197.33,197.29,13.73775558]
[1756701844403,5.06772703,197.33,197.3,13.59559401]
[1756701844597,33.98135268,197.31,197.3,13.59559401]
[1756701846606,33.98135268,197.31,197.29,140.0]
[1756701846804,2.91318584,197.3,197.29,140.0]
[1756701847316,2.91318584,197.3,197.29,153.59559401]
[1756701847498,2.91318584,197.3,197.29,140.0]
[1756701848810,7.98160956,197.3,197.27,0.03]
[1756701849098,2.91318584,197.28,197.27,0.03]
[1756701850689,7.98212339,197.28,197.27,0.03]
[1756701851095,7.98212339,197.28,197.27,13.62559401]
[1756701851783,7.98212339,197.28,197.27,153.62559401]
[1756701854074,10.89530923,197.28,197.27,153.62559401]
[1756701854282,26.13030823,197.28,197.27,153.62559401]
[1756701854809,26.13030823,197.28,197.27,13.62559401]
[1756701856577,26.13030823,197.28,197.27,0.03]
[1756701857682,26.13030823,197.28,197.27,13.62559401]
[1756701858178,20.30393655,197.28,197.27,13.62559401]
[1756701858385,7.98212339,197.28,197.27,13.62559401]
[1756701858890,10.89530923,197.28,197.27,13.62559401]
[1756701859415,10.89530923,197.28,197.26,0.03]
[1756701859595,2.91318584,197.27,197.26,0.03]
[1756701860082,16.53877984,197.27,197.26,13.62559401]
[1756701860283,2.91318584,197.27,197.26,13.62559401]
[1756701861081,7.98238034,197.27,197.26,13.62559401]
[1756701862207,7.98238034,197.27,197.26,153.62559401]
[1756701862506,2.91318584,197.28,197.27,0.14216157]
[1756701862681,7.98194967,197.29,197.28,13.59559401]
[1756701864582,7.98194967,197.29,197.27,13.59559401]
[1756701864786,2.91318584,197.28,197.27,53.59559401]
[1756701865184,7.98212339,197.28,197.27,13.59559401]
[1756701865394,10.89530923,197.28,197.27,13.59559401]
[1756701865721,26.12721523,197.28,197.27,13.59559401]
[1756701866214,26.12721523,197.28,197.27,0.03]
[1756701866516,26.12721523,197.28,197.26,0.03]
[1756701866715,2.91318584,197.27,197.26,0.03]
[1756701867183,7.98238034,197.27,197.26,0.03]
[1756701868591,7.98238034,197.27,197.26,1e-08]
[1756701868998,2.91318584,197.26,197.25,1e-08]
[1756701869193,33.98263732,197.26,197.25,1e-08]
[1756701869403,33.98263732,197.26,197.25,13.59559402]
[1756701869404,71.06945148,197.26,197.25,13.59559402]
[1756701869586,73.98263732,197.26,197.25,13.59559402]
[1756701870009,73.98263732,197.26,197.25,1e-08]
[1756701870214,33.98263732,197.26,197.25,1e-08]
[1756701871214,73.98263732,197.26,197.23,0.03]
[1756701871421,28.91318584,197.24,197.23,0.03]
[1756701871788,26.0,197.23,197.19,13.59559401]
[1756701872016,2.91318584,197.2,197.19,13.59559401]
[1756701872403,26.0,197.23,197.19,13.59559401]
[1756701872606,2.91318584,197.2,197.19,13.59559401]
[1756701872993,2.91318584,197.2,197.19,153.59559401]
[1756701873311,5.07062118,197.22,197.2,0.14216157]
[1756701874494,7.98392261,197.21,197.19,153.59559401]
[1756701874688,31.82637168,197.2,197.19,153.59559401]
[1756701874917,2.91318584,197.2,197.19,153.59559401]
[1756701875093,2.91318584,197.2,197.19,153.73775558]
[1756701877598,2.91318584,197.2,197.19,13.73775558]
[1756701877998,2.91318584,197.21,197.2,0.14216157]
[1756701878222,2.91318584,197.22,197.21,13.73775558]
[1756701878625,7.9836655,197.22,197.21,13.73775558]
[1756701880206,2.91318584,197.22,197.21,13.73775558]
[1756701880643,2.91318584,197.23,197.22,0.14216157]
[1756701880923,2.91318584,197.23,197.22,53.71775558]
[1756701881124,5.07014724,197.24,197.23,13.73775558]
[1756701881302,7.98333308,197.24,197.23,13.73775558]
[1756701884333,7.98333308,197.24,197.23,13.59559401]
[1756701885810,0.06,197.25,197.24,0.14216157]
[1756701886010,0.06,197.25,197.24,53.71775558]
[1756701886701,0.06,197.25,197.24,193.71775558]
[1756701889732,2.97318584,197.27,197.24,193.71775558]
[1756701889733,0.06,197.27,197.26,0.14216157]
[1756701889935,0.06,197.27,197.26,53.71775558]
[1756701891816,0.06,197.27,197.26,53.69775558]
[1756701892713,0.06,197.27,197.26,193.69775558]
[1756701893738,0.06,197.27,197.26,153.73775558]
[1756701894228,2.97318584,197.27,197.26,193.69775558]
[1756701894631,8.04238034,197.27,197.26,193.69775558]
[1756701895008,0.06,197.27,197.26,193.69775558]
[1756701896535,0.06,197.27,197.26,13.59559401]
[1756701896536,2.97318584,197.27,197.26,13.59559401]
[1756701897036,2.97318584,197.27,197.26,53.69775558]
[1756701898633,0.06,197.27,197.26,53.69775558]
[1756701899525,0.06,197.27,197.26,193.69775558]
[1756701899836,0.06,197.27,197.26,198.76720706]
[1756701900033,5.06818949,197.31,197.27,13.73775558]
[1756701900034,2.91318584,197.31,197.27,13.73775558]
[1756701900219,2.70930106,197.36,197.29,13.73775558]
[1756701900416,2.91318584,197.33,197.32,0.14216157]
[1756701900730,2.91318584,197.33,197.32,53.69775558]
[1756701901325,7.980839,197.33,197.32,53.69775558]
[1756701901530,2.91318584,197.33,197.32,53.69775558]
[1756701901921,2.91318584,197.35,197.34,0.14216157]
[1756701902127,2.91318584,197.35,197.34,53.67775558]
[1756701902324,5.12693107,197.36,197.35,13.73775558]
[1756701902542,5.12693107,197.36,197.3,13.59559401]
[1756701902543,8.04011691,197.36,197.3,13.59559401]
[1756701902711,20.70732404,197.36,197.23,0.03]
[1756701902917,20.70732404,197.36,197.24,53.67775558]
[1756701903116,0.06,197.27,197.24,53.67775558]
[1756701903338,0.06,197.27,197.26,153.73775558]
[1756701903733,0.06,197.27,197.26,193.67775558]
[1756701906345,0.06,197.29,197.26,198.74720706]
[1756701906543,0.06,197.29,197.28,16.65094142]
[1756701906744,0.06,197.29,197.28,56.59094142]
[1756701907124,0.06,197.29,197.28,53.67775558]
[1756701907326,0.06,197.29,197.28,56.59094142]
[1756701908121,0.06,197.29,197.28,53.67775558]
[1756701908329,0.06,197.36,197.29,39.73775558]
[1756701908646,2.91318584,197.35,197.32,0.14216157]
[1756701908872,0.06,197.36,197.34,13.73775558]
[1756701908873,5.12695162,197.36,197.34,13.73775558]
[1756701909025,5.12695162,197.36,197.35,53.67775558]
[1756701909226,5.12695162,197.36,197.35,13.73775558]
[1756701909436,5.12695162,197.36,197.35,153.73775558]
[1756701910031,8.04013746,197.36,197.35,153.73775558]
[1756701910237,23.62053043,197.36,197.23,5.10014346]
[1756701910420,5.06868062,197.29,197.23,0.03]
[1756701910744,5.06868062,197.29,197.24,39.94]
[1756701910955,5.06868062,197.29,197.23,0.03]
[1756701910956,2.91318584,197.28,197.23,0.03]
[1756701911169,2.91318584,197.28,197.24,39.94]
[1756701911447,2.91318584,197.28,197.23,0.03]
[1756701911453,2.91318584,197.27,197.23,0.03]
[1756701911658,2.91318584,197.27,197.25,39.94]
[1756701912256,2.91318584,197.27,197.26,13.73775558]
[1756701912456,2.91318584,197.27,197.26,13.59559401]
[1756701912641,7.98238034,197.27,197.23,0.03]
[1756701912955,5.0691945,197.27,197.25,13.59559401]
[1756701913331,13.595595,197.26,197.25,153.59559401]
[1756701914138,16.50878084,197.26,197.25,153.59559401]
[1756701914519,21.57823232,197.26,197.23,0.03]
[1756701914724,2.91318584,197.24,197.23,0.03]
[1756701915533,2.91318584,197.24,197.23,153.62559401]
[1756701915932,28.91318584,197.24,197.23,153.62559401]
[1756701916436,28.91318584,197.24,197.23,13.62559401]
[1756701916637,33.98315136,197.24,197.23,13.62559401]
[1756701917536,33.98315136,197.24,197.23,1e-08]
[1756701917737,74.92107863,197.24,197.15,0.03]
[1756701917939,2.91318584,197.18,197.15,0.03]
[1756701918338,2.91318584,197.19,197.15,0.17216157]
[1756701918549,2.91318584,197.19,197.15,0.03]
[1756701918753,21.5800809,197.19,197.15,0.17216157]
[1756701918947,7.9844869,197.19,197.15,0.17216157]
[1756701919450,7.9844869,197.19,197.18,13.73775558]
[1756701919854,7.9844869,197.19,197.18,13.59559401]
[1756701920059,5.07130106,197.19,197.18,13.59559401]
[1756701920235,7.9844869,197.19,197.18,13.59559401]
[1756701920634,7.9844869,197.19,197.17,140.03]
[1756701920952,26.0,197.16,197.07,0.1]
[1756701921250,2.91318584,197.08,197.07,0.1]
[1756701921450,26.0,197.09,197.07,2.74693367]
[1756701921758,2.91318584,197.09,197.07,2.74693367]
[1756701921969,2.91318584,197.09,197.08,13.59559401]
[1756701922168,17.74942875,197.19,197.08,13.59559401]
[1756701922465,2.91318584,197.12,197.09,0.14216157]
[1756701922649,2.91318584,197.1,197.08,13.59559401]
[1756701922843,2.91318584,197.09,197.08,13.59559401]
[1756701923165,26.0,197.16,197.09,0.14216157]
[1756701923461,2.91318584,197.13,197.09,0.14216157]
[1756701923666,2.91318584,197.14,197.11,0.14216157]
[1756701923873,25.41027172,197.24,197.14,0.03]
[1756701923874,39.94,197.21,197.14,0.03]
[1756701924164,2.91318584,197.18,197.14,0.03]
[1756701924332,2.91318584,197.17,197.14,0.03]
[1756701924856,7.98520856,197.16,197.14,0.03]
[1756701925064,2.91318584,197.15,197.14,0.03]
[1756701925372,7.98496507,197.17,197.14,0.03]
[1756701925864,5.07177923,197.17,197.14,0.03]
[1756701926068,4.38229719,197.17,197.14,0.03]
[1756701926234,4.38229719,197.18,197.14,0.03]
[1756701926434,4.38229719,197.17,197.14,0.03]
[1756701926762,4.38229719,197.17,197.15,13.73775558]
[1756701926939,4.38229719,197.18,197.15,13.73775558]
[1756701927333,4.38229719,197.17,197.15,13.73775558]
[1756701927734,4.38229719,197.16,197.15,13.59559401]
[1756701927951,45.01022258,197.23,197.15,13.59559401]
[1756701927952,5.07022258,197.23,197.16,0.14216157]
[1756701928259,4.38229719,197.2,197.16,0.14216157]
[1756701928556,4.38229719,197.18,197.16,0.14216157]
[1756701928762,26.0,197.2,197.15,13.59559401]
[1756701928763,4.38229719,197.17,197.15,13.59559401]
[1756701928960,4.38229719,197.16,197.15,13.59559401]
[1756701929780,9.45431991,197.16,197.15,13.59559401]
[1756701930270,4.38229719,197.16,197.15,13.59559401]
[1756701930465,4.38229719,197.18,197.15,13.59559401]
[1756701930768,15.242741,197.2,197.17,13.59559401]
[1756701930936,4.38229719,197.23,197.19,13.59559401]
[1756701931270,26.0,197.22,197.19,13.59559401]
[1756701931471,26.0,197.22,197.18,0.14216157]
[1756701931639,26.0,197.22,197.18,4.52445876]
[1756701931842,0.06,197.24,197.21,4.38229719]
[1756701932161,0.06,197.24,197.23,13.59559401]
[1756701933142,0.06,197.24,197.23,18.12005277]
[1756701933765,0.06,197.24,197.23,23.19027535]
[1756701934064,0.06,197.24,197.23,163.19027535]
[1756701934563,0.06,197.24,197.23,203.13027535]
[1756701935541,0.06,197.24,197.23,198.74797816]
[1756701935743,0.06,197.24,197.23,203.13027535]
[1756701936252,0.06,197.24,197.23,63.13027535]
[1756701938565,0.06,197.24,197.23,23.19027535]
[1756701938747,0.06,197.24,197.23,63.13027535]
[1756701939059,0.06,197.24,197.23,203.13027535]
[1756701939265,0.06,197.24,197.23,163.19027535]
[1756701939465,0.06,197.24,197.23,153.73775558]
[1756701939668,0.06,197.24,197.23,158.12005277]
[1756701940364,0.06,197.24,197.23,198.06005277]
[1756701941178,0.06,197.24,197.23,203.13027535]
[1756701942843,0.06,197.24,197.23,163.19027535]
[1756701943077,0.06,197.24,197.23,203.13027535]
[1756701943842,0.06,197.24,197.23,163.19027535]
[1756701944047,0.06,197.24,197.23,203.13027535]
[1756701944571,0.06,197.24,197.23,198.74797816]
[1756701944772,0.06,197.24,197.23,203.13027535]
[1756701945585,0.06,197.24,197.23,203.11027535]
[1756701945766,0.06,197.24,197.23,198.72797816]
[1756701945968,0.06,197.24,197.23,201.64454328]
[1756701947162,0.06,197.24,197.23,161.72454328]
[1756701947368,0.06,197.24,197.23,201.64454328]
[1756701947878,0.06,197.24,197.23,161.72454328]
[1756701948177,0.06,197.24,197.23,201.64454328]
[1756701948761,0.06,197.26,197.25,39.59559401]
[1756701948967,0.06,197.26,197.25,85.49088582]
[1756701949983,0.06,197.26,197.25,87.64402919]
[1756701952058,0.06,197.28,197.26,13.73775558]
[1756701952251,0.06,197.28,197.27,85.49088582]
[1756701952860,0.06,197.28,197.27,79.65775558]
[1756701953067,0.06,197.28,197.27,82.5743207]
[1756701953569,0.06,197.28,197.27,42.6543207]
[1756701953754,0.06,197.28,197.27,87.6435152]
[1756701954476,0.06,197.28,197.27,39.59559401]
[1756701954682,0.06,197.28,197.27,82.43215913]
[1756701954881,0.06,197.28,197.27,82.5743207]
[1756701955582,0.06,197.28,197.27,222.5743207]
[1756701955990,0.06,197.28,197.27,227.6435152]
[1756701956882,0.06,197.28,197.27,140.0]
[1756701957067,0.06,197.28,197.27,182.83656512]
[1756701957380,0.06,197.28,197.27,196.5743207]
[1756701957564,0.06,197.28,197.27,201.6435152]
[1756701957770,0.06,197.28,197.27,204.56008032]
[1756701958282,0.06,197.28,197.27,230.56008032]
[1756701959880,0.06,197.3,197.28,13.73775558]
[1756701960083,0.06,197.3,197.29,56.5743207]
[1756701960456,0.06,197.32,197.31,39.59559401]
[1756701960662,0.06,197.32,197.31,42.6543207]
[1756701961169,0.06,197.32,197.31,82.5743207]
[1756701962962,0.06,197.32,197.31,222.5743207]
[1756701963393,0.06,197.32,197.31,227.64248754]
[1756701963570,0.06,197.32,197.31,87.64248754]
[1756701963774,0.06,197.32,197.31,42.6543207]
[1756701963966,0.06,197.32,197.31,79.63775558]
[1756701964290,0.06,197.32,197.31,82.5543207]
[1756701965286,0.06,197.32,197.31,13.59559401]
[1756701965488,28.97656512,197.32,197.15,0.03]
[1756701965675,2.91656512,197.28,197.23,2.91656512]
[1756701965991,4.56227505,197.27,197.25,13.73775558]
[1756701966371,4.56227505,197.27,197.25,13.59559401]
[1756701966589,4.56227505,197.27,197.25,153.59559401]
[1756701968702,2.91656512,197.26,197.25,153.59559401]
[1756701968900,4.56227505,197.27,197.25,153.59559401]
[1756701969102,2.91656512,197.26,197.25,153.59559401]
[1756701970278,7.47907145,197.26,197.25,153.59559401]
[1756701970478,44.88533729,197.26,197.14,0.03]
[1756701970780,2.91656512,197.2,197.16,39.92]
[1756701971293,2.91656512,197.2,197.17,13.59559401]
[1756701971470,2.91656512,197.2,197.17,153.59559401]
[1756701972096,4.38065791,197.21,197.17,153.59559401]
[1756701972278,4.5636631,197.21,197.18,0.14216157]
[1756701972472,4.5636631,197.21,197.18,40.10216157]
[1756701972694,8.94432101,197.21,197.19,13.59559401]
[1756701974478,4.38065791,197.2,197.18,13.59559401]
[1756701974678,4.38065791,197.19,197.18,13.59559401]
[1756701975485,4.38065791,197.19,197.17,140.0]
[1756701975674,4.38065791,197.18,197.17,153.59559401]
[1756701976290,4.38065791,197.19,197.17,153.59559401]
[1756701976692,4.38065791,197.18,197.17,153.59559401]
[1756701978087,4.38065791,197.18,197.17,153.62559401]
[1756701978488,4.38065791,197.2,197.18,13.59559401]
[1756701979112,2.65065069,197.23,197.18,0.14216157]
[1756701979285,19.62030091,197.24,197.19,17.97625192]
[1756701979691,19.62030091,197.24,197.21,13.59559401]
[1756701979906,26.0,197.26,197.21,17.97625192]
[1756701979907,30.38065791,197.26,197.21,17.97625192]
[1756701980115,4.38065791,197.25,197.23,13.59559401]
[1756701980409,4.38065791,197.24,197.22,13.59559401]
[1756701980589,4.38065791,197.23,197.22,13.59559401]
[1756701980785,4.38065791,197.23,197.2,39.94]
[1756701980786,4.38065791,197.23,197.21,13.59559401]
[1756701980992,4.56273764,197.25,197.21,13.59559401]
[1756701981211,7.92945385,197.25,197.21,13.59559401]
[1756701981708,7.92945385,197.25,197.23,13.59559401]
[1756701981888,4.38065791,197.24,197.23,13.59559401]
[1756701982427,3.54879594,197.25,197.23,13.59559401]
[1756701982594,4.38065791,197.26,197.23,13.59559401]
[1756701982792,12.41952653,197.27,197.23,13.59559401]
[1756701982793,4.38065791,197.25,197.23,13.59559401]
[1756701982988,4.38065791,197.24,197.23,13.59559401]
[1756701983300,26.0,197.25,197.22,140.0]
[1756701983483,26.0,197.26,197.23,13.59559401]
[1756701983683,26.0,197.24,197.22,140.0]
[1756701983886,4.38065791,197.23,197.19,13.59559401]
[1756701984108,4.38065791,197.21,197.19,13.59559401]
[1756701984312,4.38065791,197.2,197.18,13.59559401]
[1756701984521,3.54987575,197.19,197.18,13.59559401]
[1756701984696,7.93053366,197.19,197.17,0.03]
[1756701985017,4.38065791,197.18,197.17,0.03]
[1756701986901,7.93071369,197.18,197.17,0.03]
[1756701987805,7.9305193,197.2,197.17,0.03]